bitfinex-derivatives/quotes_BNBF0:USTF0_20250116
["timestamp","ask_amount","ask_price","bid_price","bid_amount"]
[1737000619310,0.25871906,711.17,709.52,1.3728807]
[1737000619607,0.28123066,711.16,709.52,1.3728807]
[1737000619812,0.25871906,711.15,709.52,1.3728807]
[1737000620011,0.25871906,711.15,709.52,2.4258807]
[1737000620313,0.28123857,711.14,709.52,2.4258807]
[1737000620510,0.25871906,711.13,709.52,2.4258807]
[1737000620711,0.28124648,711.12,709.52,2.4258807]
[1737000621004,0.25871906,711.11,709.52,2.4258807]
[1737000621205,0.25871906,711.11,709.52,3.2178807]
[1737000621206,0.28125439,711.1,709.52,3.2178807]
[1737000621411,0.25871906,711.09,709.52,3.2178807]
[1737000621707,0.2812623,711.08,709.52,3.2178807]
[1737000621912,0.25871906,711.07,709.52,3.2178807]
[1737000622111,0.28127021,711.06,709.52,3.2178807]
[1737000622307,0.25871906,711.05,709.52,3.2178807]
[1737000622713,0.28127812,711.04,709.52,3.2178807]
[1737000623012,0.25871906,711.03,709.52,3.2178807]
[1737000624412,0.25874541,711.02,709.52,3.2178807]
[1737000624613,0.25874541,711.01,709.52,3.2178807]
[1737000624915,0.25874541,711.0,709.52,3.2178807]
[1737000625117,0.25874541,710.99,709.52,3.2178807]
[1737000625314,0.25874541,710.98,709.52,3.2178807]
[1737000625516,0.25874541,710.97,709.52,3.2178807]
[1737000625709,0.25874541,710.96,709.52,3.2178807]
[1737000625914,0.25874541,710.95,709.52,3.2178807]
[1737000626114,0.25874541,710.94,709.52,3.2178807]
[1737000626314,0.25874541,710.93,709.52,3.2178807]
[1737000626615,0.25874541,710.92,709.52,3.2178807]
[1737000626916,0.25876235,710.91,709.52,3.2178807]
[1737000627113,0.25876235,710.9,709.52,3.2178807]
[1737000627309,0.25876235,710.89,709.52,3.2178807]
[1737000627509,0.25876235,710.88,709.52,3.2178807]
[1737000627715,0.25876235,710.87,709.52,3.2178807]
[1737000627909,0.25876235,710.86,709.52,3.2178807]
[1737000628108,0.25876235,710.85,709.52,3.2178807]
[1737000628312,0.25876235,710.84,709.52,3.2178807]
[1737000628510,0.25876235,710.83,709.52,3.2178807]
[1737000628716,0.25876235,710.82,709.52,3.2178807]
[1737000628914,0.28127812,711.04,709.52,3.2178807]
[1737000628915,0.25876235,710.81,709.52,3.2178807]
[1737000629114,0.25876235,710.8,709.52,3.2178807]
[1737000629315,0.25876235,710.79,709.52,3.2178807]
[1737000629515,0.25876235,710.78,709.52,3.2178807]
[1737000629711,0.25876235,710.77,709.52,3.2178807]
[1737000629917,0.25876758,710.76,709.52,3.2178807]
[1737000630513,0.25876238,710.75,709.52,3.2178807]
[1737000630815,0.25876238,710.74,709.52,3.2178807]
[1737000631009,0.25876753,710.77,709.52,3.2178807]
[1737000631215,0.25875288,710.76,709.52,3.2178807]
[1737000631411,0.25875288,710.75,709.52,3.2178807]
[1737000631611,0.28127812,711.04,709.52,3.2178807]
[1737000631811,0.25875371,711.03,709.52,3.2178807]
[1737000632616,0.28127812,711.04,709.52,3.2178807]
[1737000632817,0.25875539,711.03,709.52,3.2178807]
[1737000635315,0.28127812,711.04,709.52,3.2178807]
[1737000635516,0.25875344,711.03,709.52,3.2178807]
[1737000636924,0.25875344,711.03,709.55,1.05524814]
[1737000637122,0.25875344,711.03,709.56,0.28186481]
[1737000637925,0.25875344,711.03,709.57,1.05524814]
[1737000638127,0.25872769,711.02,709.58,0.28185687]
[1737000638428,0.25872769,711.01,709.58,0.28185687]
[1737000638626,0.25872769,711.0,709.58,0.28185687]
[1737000638829,0.25872774,710.99,709.58,0.28185687]
[1737000639024,0.25872774,710.98,709.58,0.28185687]
[1737000639227,0.28127812,711.04,709.58,0.28185687]
[1737000639228,0.25872774,710.97,709.59,1.05524814]
[1737000639427,0.25872774,710.96,709.59,1.05524814]
[1737000639723,0.28127812,711.04,709.59,1.05524814]
[1737000639724,0.25872774,710.95,709.6,0.28184892]
[1737000639928,0.25872774,710.94,709.6,0.28184892]
[1737000640130,0.28127812,711.04,709.6,0.28184892]
[1737000640131,0.25872774,710.93,709.61,1.05524814]
[1737000640327,0.25872774,710.92,709.61,1.05524814]
[1737000640523,0.25872774,710.91,709.61,1.05524814]
[1737000640726,0.25872774,710.9,709.61,1.05524814]
[1737000640927,0.25873533,710.89,709.61,1.05524814]
[1737000641123,0.25873533,710.88,709.61,1.05524814]
[1737000641322,0.25873533,710.87,709.61,1.05524814]
[1737000641527,0.25873533,710.86,709.61,1.05524814]
[1737000641728,0.25873533,710.85,709.61,1.05524814]
[1737000642026,0.25873533,710.84,709.6,0.28184892]
[1737000642225,1.05398,711.03,709.6,0.28184892]
[1737000642226,0.25873533,710.83,709.6,0.28184892]
[1737000642530,0.25873533,710.82,709.6,0.28184892]
[1737000642723,0.25873533,710.81,709.6,0.28184892]
[1737000642923,0.25873533,710.8,709.6,0.28184892]
[1737000643230,0.25873533,710.79,709.6,1.33709706]
[1737000643530,0.25873533,710.78,709.6,1.33709706]
[1737000643728,1.05398,711.02,709.6,1.33709706]
[1737000643928,0.25873528,711.01,709.6,1.33709706]
[1737000644330,0.25873528,711.01,709.62,1.05524814]
[1737000644524,0.25873528,711.01,709.63,0.28183701]
[1737000645428,1.31271528,711.01,709.63,0.28183701]
[1737000645623,0.25873528,711.0,709.63,0.28183701]
[1737000646526,0.25873528,711.0,709.65,1.05524814]
[1737000646727,0.25873528,710.99,709.66,0.28182509]
[1737000646925,0.25873528,710.98,709.66,0.28182509]
[1737000647224,0.25873528,710.97,709.66,0.28182509]
[1737000647428,0.25873528,710.96,709.66,0.28182509]
[1737000647630,1.05398,710.88,709.72,1.05524814]
[1737000647823,0.25873528,710.87,709.72,1.05524814]
[1737000648828,0.25873528,710.86,709.72,1.05524814]
[1737000649031,0.25873528,710.85,709.72,1.05524814]
[1737000649232,0.25873439,710.84,709.72,1.05524814]
[1737000649433,0.25873439,710.83,709.72,1.05524814]
[1737000649731,0.25873439,710.82,709.72,1.05524814]
[1737000650032,0.25873439,710.81,709.72,1.05524814]
[1737000650232,0.25873439,710.8,709.72,1.05524814]
[1737000650432,0.25873439,710.79,709.72,2.06824814]
[1737000650634,0.25873439,710.78,709.72,2.06824814]
[1737000651004,0.28127812,711.04,709.72,2.06824814]
[1737000651005,0.25873439,710.77,709.73,1.05524814]
[1737000651203,0.25873439,710.76,709.73,1.05524814]
[1737000651416,0.25873439,710.75,709.73,1.05524814]
[1737000651631,0.25873439,710.74,709.73,1.83524814]
[1737000651833,0.25873439,710.73,709.75,1.05524814]
[1737000652135,0.2587334,710.72,709.75,1.05524814]
[1737000652333,0.2587334,710.84,709.75,1.05524814]
[1737000652634,0.2587334,710.83,709.75,1.05524814]
[1737000652833,0.2587334,710.82,709.75,1.05524814]
[1737000653029,0.2587334,710.81,709.75,1.05524814]
[1737000653235,0.2587334,710.8,709.75,1.05524814]
[1737000653430,0.2587334,710.79,709.75,1.05524814]
[1737000653629,0.2587334,710.78,709.75,1.05524814]
[1737000653937,0.2587334,710.77,709.73,1.83524814]
[1737000654129,0.2587334,710.76,709.73,1.83524814]
[1737000654330,0.2587334,710.75,709.73,1.83524814]
[1737000654532,0.2587334,710.74,709.73,1.83524814]
[1737000654732,1.05398,710.87,709.73,1.83524814]
[1737000654927,0.25873504,710.86,709.73,1.83524814]
[1737000655535,0.25873307,710.85,709.73,0.78]
[1737000655727,0.25873307,710.84,709.73,0.78]
[1737000655931,1.05398,710.92,709.73,0.78]
[1737000655932,0.25873307,710.83,709.73,0.78]
[1737000656130,0.25873307,710.82,709.73,0.78]
[1737000656328,1.05398,710.92,709.73,0.78]
[1737000656329,0.25873307,710.81,709.73,0.78]
[1737000656634,0.25873307,710.8,709.73,0.78]
[1737000656834,0.25873307,710.79,709.73,0.78]
[1737000657135,0.25873307,710.78,709.73,0.78]
[1737000657433,0.25872638,710.77,709.73,0.78]
[1737000657630,1.05398,710.94,709.73,0.78]
[1737000657829,0.25871826,710.93,709.73,0.78]
[1737000658034,0.25871826,710.93,709.74,1.05524814]
[1737000658234,0.25871826,710.92,709.74,1.05524814]
[1737000658533,1.05398,710.95,709.74,1.05524814]
[1737000658534,0.25871826,710.91,709.74,1.05524814]
[1737000658732,0.25871826,710.9,709.74,1.05524814]
[1737000658932,0.25871826,710.89,709.74,1.05524814]
[1737000659134,0.25871826,710.88,709.74,1.05524814]
[1737000659334,0.25871826,710.87,709.74,1.05524814]
[1737000659633,0.25871826,710.86,709.74,1.05524814]
[1737000659834,0.25871826,710.85,709.74,1.05524814]
[1737000660136,0.25871826,710.84,709.76,1.05524814]
[1737000660335,1.05398,711.01,709.77,0.28178142]
[1737000660537,0.25870356,711.0,709.77,0.28178142]
[1737000661537,0.25870356,710.99,709.77,0.28178142]
[1737000661835,0.25870356,710.98,709.77,0.28178142]
[1737000662036,0.25870356,710.97,709.77,0.28178142]
[1737000662235,0.25870198,710.96,709.77,0.28178142]
[1737000662437,0.25870198,710.95,709.77,0.28178142]
[1737000662631,0.28127812,711.04,709.77,0.28178142]
[1737000662936,0.25870175,711.03,709.77,0.28178142]
[1737000663938,0.25870175,711.03,709.77,1.16578142]
[1737000665239,0.25870198,711.02,709.77,1.16578142]
[1737000665438,0.25870198,711.01,709.77,1.16578142]
[1737000665739,0.25870198,711.0,709.77,1.16578142]
[1737000665939,0.25870198,710.99,709.77,1.16578142]
[1737000666139,0.25870198,710.98,709.77,1.16578142]
[1737000666438,0.28127812,711.04,709.77,1.16578142]
[1737000666639,0.25870168,711.03,709.77,1.16578142]
[1737000667835,0.25870179,711.02,709.77,1.16578142]
[1737000668038,0.25870179,711.01,709.77,1.16578142]
[1737000668239,0.25870179,711.03,709.77,1.16578142]
[1737000668438,0.25870179,711.02,709.77,1.16578142]
[1737000668635,0.25870179,711.01,709.77,1.16578142]
[1737000668840,0.25870179,711.0,709.77,1.16578142]
[1737000669040,0.25870179,710.99,709.77,1.16578142]
[1737000669240,0.28127812,711.04,709.77,1.16578142]
[1737000669438,0.25870234,711.03,709.77,1.16578142]
[1737000670436,0.25870216,711.02,709.77,1.16578142]
[1737000670636,0.25870216,711.01,709.77,1.16578142]
[1737000670840,0.25870216,711.0,709.77,1.16578142]
[1737000671038,0.25870216,710.99,709.77,1.16578142]
[1737000671346,0.28127812,711.04,709.77,1.16578142]
[1737000671347,0.25870216,710.98,709.77,1.16578142]
[1737000671538,0.25870216,710.97,709.77,1.16578142]
[1737000671738,0.25870216,710.96,709.77,1.16578142]
[1737000671941,0.25870216,710.95,709.77,1.16578142]
[1737000672144,0.25870216,710.94,709.77,1.16578142]
[1737000672344,0.25870216,710.93,709.77,1.16578142]
[1737000672544,0.25870216,710.92,709.77,1.16578142]
[1737000672738,0.25870216,710.91,709.77,1.16578142]
[1737000672939,0.25870216,710.9,709.77,1.16578142]
[1737000673142,0.25870216,710.89,709.77,1.16578142]
[1737000673342,0.25870337,710.88,709.77,1.16578142]
[1737000673642,0.28127812,711.04,709.77,1.16578142]
[1737000673843,0.25870337,711.03,709.77,1.16578142]
[1737000675945,0.28127812,711.04,709.77,1.16578142]
[1737000676146,0.25870411,711.03,709.77,1.16578142]
[1737000676640,0.25870411,711.03,709.77,2.33478142]
[1737000678746,1.05398,710.99,709.78,1.05524814]
[1737000678945,0.25870355,710.98,709.79,0.28177348]
[1737000679640,1.05398,710.99,709.79,0.28177348]
[1737000679842,0.28127812,711.04,709.79,0.28177348]
[1737000682648,0.28127812,711.04,709.79,1.49777348]
[1737000687851,0.25869302,711.03,709.79,1.49777348]
[1737000690660,1.31267302,711.03,709.79,1.49777348]
[1737000690858,0.25869302,711.02,709.79,1.49777348]
[1737000691660,1.05398,710.99,709.79,2.55302162]
[1737000691855,0.25869302,710.98,709.79,2.55302162]
[1737000692458,0.25870577,710.97,709.79,2.55302162]
[1737000692655,0.25870577,710.96,709.79,2.55302162]
[1737000692860,0.25870577,710.95,709.82,1.05524814]
[1737000693163,0.25870577,710.94,709.82,1.05524814]
[1737000693358,0.25870577,710.93,709.82,1.05524814]
[1737000693556,0.25870577,710.92,709.82,1.05524814]
[1737000693760,0.25870577,710.91,709.79,1.49777348]
[1737000694062,0.25870577,710.9,709.79,1.49777348]
[1737000694257,0.25870577,710.89,709.79,1.49777348]
[1737000694458,0.25870577,710.88,709.79,1.49777348]
[1737000694656,0.25870577,710.87,709.79,1.49777348]
[1737000694857,1.05398,711.0,709.79,2.55302162]
[1737000695157,0.25870717,710.99,709.79,2.55302162]
[1737000695963,0.25870735,710.98,709.79,2.55302162]
[1737000696157,0.25870735,710.97,709.79,2.55302162]
[1737000696361,0.25870735,710.96,709.79,2.55302162]
[1737000696663,0.25870735,710.95,709.79,2.55302162]
[1737000696865,0.25870735,710.94,709.79,2.55302162]
[1737000697062,0.25870735,710.93,709.79,2.55302162]
[1737000697263,0.25870735,710.92,709.8,1.05524814]
[1737000697462,0.25870735,710.91,709.81,0.28176554]
[1737000697764,0.25870735,710.9,709.81,0.28176554]
[1737000698063,0.25870717,710.89,709.81,0.28176554]
[1737000698263,0.25870717,710.88,709.81,0.28176554]
[1737000698456,0.25870717,710.87,709.81,0.28176554]
[1737000698660,0.25870717,710.86,709.81,0.28176554]
[1737000698963,0.25870717,710.85,709.81,0.28176554]
[1737000699156,0.25870717,710.84,709.81,0.28176554]
[1737000699360,0.25870717,710.83,709.81,1.33701368]
[1737000699562,1.05398,710.96,709.81,1.33701368]
[1737000699758,0.25870666,710.95,709.81,1.33701368]
[1737000700961,1.31268666,710.95,709.81,1.33701368]
[1737000701161,0.25870666,710.94,709.81,1.33701368]
[1737000702062,0.25870666,710.94,709.82,1.05524814]
[1737000704861,0.25870941,710.89,709.82,1.81524814]
[1737000705065,0.25870941,710.88,709.82,1.81524814]
[1737000705265,0.25870941,710.87,709.82,0.76]
[1737000705466,0.25870941,710.86,709.82,0.76]
[1737000705661,0.25870941,710.85,709.82,0.76]
[1737000705868,0.25870941,710.84,709.82,0.76]
[1737000706162,0.25870941,710.83,709.82,0.76]
[1737000706362,0.25871643,710.82,709.82,0.76]
[1737000706562,0.25871643,710.81,709.82,0.76]
[1737000706763,0.25871643,710.8,709.82,1.923]
[1737000706966,0.28127812,711.04,709.82,1.923]
[1737000706967,1.05398,710.93,709.82,1.923]
[1737000707169,0.25871378,710.92,709.82,1.923]
[1737000708066,0.25871378,710.91,709.82,1.923]
[1737000708265,0.25871378,710.9,709.82,1.923]
[1737000708569,0.25871378,710.89,709.82,1.923]
[1737000708764,0.25871378,710.88,709.82,1.923]
[1737000708964,1.05398,710.94,709.82,1.923]
[1737000709270,0.25871592,710.93,709.82,1.923]
[1737000709971,1.05398,710.89,709.82,3.75024814]
[1737000710168,0.25871592,710.88,709.82,3.75024814]
[1737000710970,0.25871592,710.88,709.82,2.695]
[1737000711168,0.25871592,710.87,709.82,2.695]
[1737000711366,0.25871592,710.86,709.82,2.695]
[1737000711569,0.25871592,710.85,709.82,2.695]
[1737000711871,0.25871629,710.84,709.82,2.695]
[1737000712172,0.25871629,710.83,709.82,2.695]
[1737000712373,1.05398,711.0,709.82,2.695]
[1737000712672,0.25871478,710.99,709.82,2.695]
[1737000712868,1.05398,710.98,709.82,2.695]
[1737000713070,0.25871478,710.97,709.82,2.695]
[1737000714573,1.05398,710.98,709.82,2.695]
[1737000714773,0.25871475,710.97,709.82,2.695]
[1737000717075,0.25871475,710.96,709.82,2.695]
[1737000717274,0.25871475,710.95,709.82,2.695]
[1737000717477,0.25871475,710.98,709.82,2.695]
[1737000717673,0.25871475,710.97,709.82,2.695]
[1737000717875,0.25871475,710.96,709.82,2.695]
[1737000718074,0.25871475,710.95,709.82,2.695]
[1737000718274,0.25871475,710.94,709.82,2.695]
[1737000718471,0.25871475,710.93,709.82,2.695]
[1737000718778,0.25871475,710.92,709.82,2.695]
[1737000718976,0.25871475,710.91,709.82,2.695]
[1737000719172,0.25871475,710.9,709.82,2.695]
[1737000719374,0.25871475,710.89,709.82,2.695]
[1737000719576,0.25871475,710.88,709.82,2.695]
[1737000719776,0.25871475,710.87,709.82,2.695]
[1737000719972,0.25871475,710.86,709.82,2.695]
[1737000720173,1.05398,710.99,709.82,2.695]
[1737000720379,1.31269561,710.98,709.82,2.695]
[1737000720580,0.25871561,710.97,709.82,2.695]
[1737000720874,0.25871501,710.96,709.82,2.695]
[1737000721078,0.25871501,710.95,709.82,2.695]
[1737000721274,0.25871501,710.94,709.82,2.695]
[1737000721473,0.25871501,710.93,709.82,2.695]
[1737000721678,0.25871501,710.92,709.82,2.695]
[1737000721979,0.25871501,710.91,709.82,2.695]
[1737000722180,0.25871501,710.9,709.82,2.695]
[1737000722380,0.25871501,710.96,709.82,2.695]
[1737000722576,1.05398,710.9,709.82,3.75024814]
[1737000722784,0.25871501,710.89,709.82,3.75024814]
[1737000724777,1.05533223,710.68,709.82,3.75024814]
[1737000726181,1.05533223,710.68,709.84,1.05524814]
[1737000726983,1.05533223,710.67,709.85,1.05524814]
[1737000727582,1.05533223,710.67,709.85,2.43524814]
[1737000727980,1.05533223,710.64,709.87,1.05524814]
[1737000731177,1.05533223,710.64,709.87,1.83224814]
[1737000731378,0.75955009,711.03,709.87,0.777]
[1737000731379,1.05533223,710.61,709.87,0.777]
[1737000733578,0.75955009,711.03,709.87,0.777]
[1737000733579,1.05533223,710.63,709.87,0.777]
[1737000734684,0.75955009,711.03,709.87,0.777]
[1737000734685,1.05533223,710.62,709.87,0.777]
[1737000735484,0.75955009,711.03,709.87,0.777]
[1737000735684,0.25871996,711.02,709.87,0.777]
[1737000735877,0.75955009,711.03,709.87,0.777]
[1737000736082,0.25871915,711.02,709.87,0.777]
[1737000736377,1.05527615,710.63,709.87,0.777]
[1737000738482,1.05527615,711.17,709.87,0.777]
[1737000739586,1.05527615,711.15,709.87,0.777]
[1737000740686,1.05527615,711.08,709.87,0.777]
[1737000741888,1.05527615,711.0,709.87,0.777]
[1737000742790,1.05527615,711.01,709.87,0.777]
[1737000743890,1.05527615,710.99,709.87,0.777]
[1737000745088,1.05527615,711.15,709.87,0.777]
[1737000746091,1.05527615,711.18,709.87,0.777]
[1737000749593,1.05527615,711.17,709.87,0.777]
[1737000750190,1.05527615,711.16,709.87,0.777]
[1737000751496,1.05527615,711.16,709.87,1.521]
[1737000752199,1.05527615,711.15,709.87,1.521]
[1737000753397,1.05527615,711.16,709.87,1.521]
[1737000753597,1.05527615,711.16,709.87,2.843]
[1737000754392,0.25871985,711.03,709.87,2.843]
[1737000755196,1.05527615,711.16,709.87,2.843]
[1737000755396,0.2587217,711.03,709.87,2.843]
[1737000755792,1.05527615,711.16,709.87,2.843]
[1737000756196,1.05527615,710.88,709.87,2.843]
[1737000757394,1.05527615,710.96,709.87,2.843]
[1737000758899,1.05527615,710.97,709.87,2.843]
[1737000761103,1.05527615,710.89,709.87,2.843]
[1737000762204,1.05527615,710.81,709.87,2.843]
[1737000763207,1.05527615,710.8,709.87,2.843]
[1737000764104,1.05527615,710.79,709.87,2.843]
[1737000766213,1.05527615,710.81,709.87,2.843]
[1737000766514,0.25871163,710.8,709.87,2.843]
[1737000767110,1.05527615,710.72,709.87,2.843]
[1737000769315,1.05527615,710.78,709.87,2.843]
[1737000770115,1.05527615,710.79,709.87,2.843]
[1737000772517,1.05527615,710.76,709.87,2.843]
[1737000773616,0.28127812,711.04,709.87,2.843]
[1737000773617,1.05527615,710.75,709.87,2.843]
[1737000774618,1.05527615,710.72,709.87,2.843]
[1737000776913,1.05527615,710.71,709.87,2.843]
[1737000779820,0.75852055,711.03,709.87,2.843]
[1737000779821,1.05527615,710.62,709.87,2.843]
[1737000781020,1.05527615,710.63,709.87,2.843]
[1737000782121,1.05527615,710.62,709.87,2.843]
[1737000784023,1.05527615,710.61,709.87,2.843]
[1737000785025,1.05527615,710.6,709.87,2.843]
[1737000785819,1.05527615,710.59,709.87,2.843]
[1737000791226,1.05527615,710.6,709.87,2.843]
[1737000792128,1.05527615,710.61,709.87,2.843]
[1737000795229,1.05527615,710.63,709.87,2.843]
[1737000796223,1.05527615,710.67,709.87,2.843]
[1737000797427,1.05527615,710.66,709.87,2.843]
[1737000798426,1.05527615,710.69,709.87,2.843]
[1737000799433,1.05527615,710.82,709.87,2.843]
[1737000800532,1.05527615,710.83,709.87,2.843]
[1737000801732,1.05527615,710.84,709.87,2.843]
[1737000802935,1.05527615,710.85,709.87,2.843]
[1737000804635,1.05527615,710.86,709.87,2.843]
[1737000806632,1.05527615,710.87,709.87,2.843]
[1737000807537,1.05527615,710.85,709.87,2.843]
[1737000807739,0.25869024,710.84,709.87,2.843]
[1737000808540,1.05527615,710.82,709.87,2.843]
[1737000809536,1.05527615,710.83,709.87,2.843]
[1737000810433,1.05527615,710.85,709.87,2.843]
[1737000810741,0.25869651,710.84,709.87,2.843]
[1737000810938,0.25870616,710.83,709.87,2.843]
[1737000811134,0.25870616,710.82,709.87,2.843]
[1737000811339,0.25870616,710.81,709.87,2.843]
[1737000811539,0.25870616,710.8,709.87,2.843]
[1737000811741,0.25870616,710.79,709.87,2.843]
[1737000811940,0.25870616,710.78,709.87,2.843]
[1737000812141,0.25870616,710.77,709.87,2.843]
[1737000812341,0.25870616,710.76,709.87,2.843]
[1737000812542,1.05527615,710.77,709.87,2.843]
[1737000812843,0.25873284,710.76,709.87,2.843]
[1737000813344,1.05527615,710.75,709.87,2.843]
[1737000815746,0.28127812,711.04,709.87,2.843]
[1737000824043,0.25865788,711.03,709.87,2.843]
[1737000824852,1.05527615,711.02,709.87,2.843]
[1737000825049,0.25865788,711.01,709.87,2.843]
[1737000825850,0.25865788,711.01,709.88,0.28173775]
[1737000826051,0.2586554,711.0,709.88,0.28173775]
[1737000826252,0.2586554,710.99,709.88,0.28173775]
[1737000826446,0.2586554,710.98,709.88,0.28173775]
[1737000826649,0.2586554,710.97,709.88,0.28173775]
[1737000826845,1.05527615,711.0,709.88,0.28173775]
[1737000827052,0.2586537,710.99,709.88,0.28173775]
[1737000827252,0.2586537,710.99,709.88,2.44173775]
[1737000828252,0.2586537,710.98,709.88,2.44173775]
[1737000828553,1.05527615,711.01,709.88,2.44173775]
[1737000828751,0.25864113,711.0,709.88,2.44173775]
[1737000828948,0.25864113,710.99,709.88,2.44173775]
[1737000829144,0.25864113,710.98,709.88,2.44173775]
[1737000829349,1.33655427,711.04,709.88,2.44173775]
[1737000829551,0.25864113,711.03,709.88,2.44173775]
[1737000831856,0.25864888,711.02,709.88,2.44173775]
[1737000832049,0.25864888,711.01,709.88,2.44173775]
[1737000832255,0.25864888,711.0,709.88,2.44173775]
[1737000832453,0.25864888,710.99,709.88,2.44173775]
[1737000832650,0.25864888,710.98,709.88,2.44173775]
[1737000832855,1.33655427,711.04,709.88,2.44173775]
[1737000833154,0.25864813,711.03,709.88,2.44173775]
[1737000833549,1.05527615,711.02,709.88,2.44173775]
[1737000834254,0.28127812,711.04,709.88,2.44173775]
[1737000837254,0.25864343,711.03,709.88,2.44173775]
[1737000837454,0.25864343,711.03,709.88,3.26573775]
[1737000837657,0.28127812,711.04,709.88,3.26573775]
[1737000837852,0.25864312,711.03,709.88,3.26573775]
[1737000840158,0.25863705,711.02,709.88,3.26573775]
[1737000840459,0.25863705,711.01,709.88,3.26573775]
[1737000840659,1.33655427,711.04,709.88,3.26573775]
[1737000840858,0.25863627,711.03,709.88,3.26573775]
[1737000842654,0.25863627,711.03,709.88,4.32132765]
[1737000843060,0.28127812,711.04,709.88,4.32132765]
[1737000844058,0.28127812,711.04,709.88,3.26573775]
[1737000850965,0.25869622,711.03,709.88,3.26573775]
[1737000851363,1.05527615,710.97,709.88,3.26573775]
[1737000851568,0.25869622,710.96,709.88,3.26573775]
[1737000852571,1.05527615,710.81,709.88,3.26573775]
[1737000853566,1.05527615,710.82,709.88,3.26573775]
[1737000853767,0.25869954,710.81,709.88,3.26573775]
[1737000853970,1.05527615,710.82,709.88,3.26573775]
[1737000854673,1.05527615,710.86,709.88,3.26573775]
[1737000855872,1.05527615,710.99,709.88,3.26573775]
[1737000856074,0.25877617,710.98,709.88,3.26573775]
[1737000857173,0.25877617,710.97,709.88,3.26573775]
[1737000857369,0.25877617,710.96,709.88,3.26573775]
[1737000857574,0.25877617,710.95,709.88,3.26573775]
[1737000857770,0.25877617,710.94,709.88,3.26573775]
[1737000857975,0.25877617,710.93,709.88,3.26573775]
[1737000858178,0.25877617,710.92,709.88,3.26573775]
[1737000858375,0.25878146,710.91,709.88,3.26573775]
[1737000858675,0.25878242,710.9,709.88,3.26573775]
[1737000859076,0.25878146,710.91,709.88,3.26573775]
[1737000859376,0.25878356,710.9,709.88,3.26573775]
[1737000861170,0.25878627,710.89,709.88,3.26573775]
[1737000861375,0.25878627,710.88,709.88,3.26573775]
[1737000861577,0.25878627,710.87,709.88,3.26573775]
[1737000861870,0.25878146,710.91,709.88,3.26573775]
[1737000862073,0.25878627,710.9,709.88,3.26573775]
[1737000863977,0.25877493,710.89,709.88,3.26573775]
[1737000864177,0.25877493,710.88,709.88,3.26573775]
[1737000864375,0.25877493,710.87,709.88,3.26573775]
[1737000864679,0.25877493,710.86,709.88,3.26573775]
[1737000864880,0.25877493,710.85,709.88,3.26573775]
[1737000865179,0.25877493,710.84,709.88,3.26573775]
[1737000865480,0.25877493,710.83,709.88,3.26573775]
[1737000865680,0.25877493,710.82,709.88,3.26573775]
[1737000865880,0.25877493,710.81,709.88,3.26573775]
[1737000866080,0.25877493,710.8,709.88,3.26573775]
[1737000866278,0.25877493,710.79,709.88,3.26573775]
[1737000866480,0.25877493,710.78,709.88,3.26573775]
[1737000866779,0.25878251,710.77,709.88,3.26573775]
[1737000866978,0.25878251,710.76,709.88,3.26573775]
[1737000867179,0.25878251,710.75,709.88,3.26573775]
[1737000867380,0.25878427,710.74,709.88,3.26573775]
[1737000867574,0.25878427,710.73,709.88,3.26573775]
[1737000867778,0.25878427,710.72,709.88,3.26573775]
[1737000867979,0.25878427,710.71,709.88,3.26573775]
[1737000868176,0.25878427,710.7,709.88,3.26573775]
[1737000868381,0.25878427,710.69,709.88,3.26573775]
[1737000868580,0.25878427,710.68,709.88,3.26573775]
[1737000868779,0.25878427,710.67,709.88,3.26573775]
[1737000868977,0.25878427,710.66,709.88,3.26573775]
[1737000869182,0.25878427,710.65,709.88,3.26573775]
[1737000869383,0.25878427,710.64,709.88,3.26573775]
[1737000869584,0.25878189,710.63,709.88,3.26573775]
[1737000869885,0.25878189,710.62,709.88,3.26573775]
[1737000870184,0.25878189,710.61,709.88,3.26573775]
[1737000870386,1.05527615,710.97,709.88,3.26573775]
[1737000870684,0.25878413,710.96,709.88,3.26573775]
[1737000871990,0.25878413,710.95,709.88,3.26573775]
[1737000872188,1.05527615,711.02,709.88,3.26573775]
[1737000872487,0.25878418,711.01,709.88,3.26573775]
[1737000872686,1.05527615,710.98,709.88,3.26573775]
[1737000872889,0.25878418,710.97,709.88,3.26573775]
[1737000874987,1.31406233,710.96,709.88,3.26573775]
[1737000875287,0.25878618,710.95,709.88,3.26573775]
[1737000875488,0.25878584,710.94,709.88,3.26573775]
[1737000875688,0.25878584,710.93,709.88,3.26573775]
[1737000875990,0.25878584,710.92,709.88,3.26573775]
[1737000876287,0.25878584,710.91,709.88,3.26573775]